Workbook

Sheet Dane umowa o pracy
B1: Kwota brutto | C1: 5000
A2: Składka | B2: Składki pokrywane przez pracodawcę | C2: Składki pokrywane przez pracownika | D2: Łącznie składki
A3: Emerytalna | B3: 0.0976 | C3: 0.0976 | D3: =SUM(B3:C3) -> 0.1952
A4: Rentowa | B4: 0.065 | C4: 0.015 | D4: 0.08
A5: Wypadkowa | B5: 0.018 | D5: 0.018
A6: Chorobowa | C6: 0.0245 | D6: 0.0245
A7: Zdrowotna | C7: 0.09 | D7: 0.09
A8: FP | B8: 0.0245 | D8: 0.0245
A9: FGŚP | B9: 0.001 | D9: 0.001
L22: Kwota Wolna | M22: 556.02
B24: Pracownik | O24: Pracodawca
A25: Data | B25: Pracownik Brutto | C25: Pracownik Emerytalna | D25: Pracownik Rentowa | E25: Pracownik Chorobowa | F25: Pracownik razem składki ZUS | G25: Podstawa opodatkowania (też do wyliczenia zdrowotnej) | H25: Koszty uzyskania przychodu | I25: Podstawa Opodatkowania | J25: Zdrowotna | K25: Podatek 18% | L25: Kwota Wolna odliczenie | M25: Pracownik podatek po odjęciu zdrowotnych | N25: Pracownik Netto | O25: Pracodawca Brutto | P25: Pracodawca Emerytalna | Q25: Pracodawca Rentowa | R25: Pracodawca Wypadkowa | S25: Pracodawca FP | T25: Pracodawca FGŚP | U25: Pracodawca całkowity koszt | V25: Dodatkowe koszty pracodawcy | W25: Brutto + Składki + Podatek
A26: 43101 | B26: =$C$1 -> 5000 | C26: =B26*$C$3 -> 488 | D26: =B26*$C$4 -> 75 | E26: =B26*$C$6 -> 122.5 | F26: =C26+D26+E26 -> 685.5 | G26: =B26-F26 -> 4314.5 | H26: 111.25 | I26: =G26-H26 -> 4203.25 | J26: =G26*$C$7 -> 388.305 | K26: 756.585 | L26: =K26-($M$22/12) -> 710.25 | M26: =L26-(G26*0.0775) -> 375.87625 | N26: =G26-J26-M26 -> 3550.31875 | O26: =$C$1 -> 5000 | P26: =O26*$B$3 -> 488 | Q26: =O26*$B$4 -> 325 | R26: =O26*$B$5 -> 90 | S26: =O26*$B$8 -> 122.5 | T26: =O26*$B$9 -> 5 | U26: =O26+SUM(P26:T26) -> 6030.5 | V26: 0 | W26: 0
A27: 43132 | B27: =$C$1 -> 5000 | C27: 488 | D27: 75 | E27: 122.5 | F27: =C27+D27+E27 -> 685.5 | G27: =B27-F27 -> 4314.5 | H27: 111.25 | I27: =G27-H27 -> 4203.25 | J27: 388.305 | K27: 756.585 | L27: 710.25 | M27: 375.87625 | N27: 3550.31875 | O27: =$C$1 -> 5000 | P27: 488 | Q27: 325 | R27: 90 | S27: 122.5 | T27: 5 | U27: 6030.5 | V27: 0 | W27: 0
A28: 43160 | B28: 5000 | C28: 488 | D28: 75 | E28: 122.5 | F28: 685.5 | G28: 4314.5 | H28: 111.25 | I28: =G28-H28 -> 4203.25 | J28: 388.305 | K28: 756.585 | L28: 710.25 | M28: 375.87625 | N28: 3550.31875 | O28: 5000 | P28: 488 | Q28: 325 | R28: 90 | S28: 122.5 | T28: 5 | U28: 6030.5 | V28: 0 | W28: 0
A29: 43191 | B29: 5000 | C29: 488 | D29: 75 | E29: 122.5 | F29: 685.5 | G29: 4314.5 | H29: 111.25 | I29: 4203.25 | J29: 388.305 | K29: 756.585 | L29: 710.25 | M29: 375.87625 | N29: 3550.31875 | O29: 5000 | P29: 488 | Q29: 325 | R29: 90 | S29: 122.5 | T29: 5 | U29: 6030.5 | V29: 0 | W29: 0
A30: 43221 | B30: 5000 | C30: 488 | D30: 75 | E30: 122.5 | F30: 685.5 | G30: 4314.5 | H30: 111.25 | I30: 4203.25 | J30: 388.305 | K30: 756.585 | L30: 710.25 | M30: 375.87625 | N30: 3550.31875 | O30: 5000 | P30: 488 | Q30: 325 | R30: 90 | S30: 122.5 | T30: 5 | U30: 6030.5 | V30: 0 | W30: 0
A31: 43252 | B31: 5000 | C31: 488 | D31: 75 | E31: 122.5 | F31: 685.5 | G31: 4314.5 | H31: 111.25 | I31: 4203.25 | J31: 388.305 | K31: 756.585 | L31: 710.25 | M31: 375.87625 | N31: 3550.31875 | O31: 5000 | P31: 488 | Q31: 325 | R31: 90 | S31: 122.5 | T31: 5 | U31: 6030.5 | V31: 0 | W31: 0
A32: 43282 | B32: 5000 | C32: 488 | D32: 75 | E32: 122.5 | F32: 685.5 | G32: 4314.5 | H32: 111.25 | I32: 4203.25 | J32: 388.305 | K32: 756.585 | L32: 710.25 | M32: 375.87625 | N32: 3550.31875 | O32: 5000 | P32: 488 | Q32: 325 | R32: 90 | S32: 122.5 | T32: 5 | U32: 6030.5 | V32: 0 | W32: 0
A33: 43313 | B33: 5000 | C33: 488 | D33: 75 | E33: 122.5 | F33: 685.5 | G33: 4314.5 | H33: 111.25 | I33: 4203.25 | J33: 388.305 | K33: 756.585 | L33: 710.25 | M33: 375.87625 | N33: 3550.31875 | O33: 5000 | P33: 488 | Q33: 325 | R33: 90 | S33: 122.5 | T33: 5 | U33: 6030.5 | V33: 0 | W33: 0
A34: 43344 | B34: 5000 | C34: 488 | D34: 75 | E34: 122.5 | F34: 685.5 | G34: 4314.5 | H34: 111.25 | I34: 4203.25 | J34: 388.305 | K34: 756.585 | L34: 710.25 | M34: 375.87625 | N34: 3550.31875 | O34: 5000 | P34: 488 | Q34: 325 | R34: 90 | S34: 122.5 | T34: 5 | U34: 6030.5 | V34: 0 | W34: 0
A35: 43374 | B35: 5000 | C35: 488 | D35: 75 | E35: 122.5 | F35: 685.5 | G35: 4314.5 | H35: 111.25 | I35: 4203.25 | J35: 388.305 | K35: 756.585 | L35: 710.25 | M35: 375.87625 | N35: 3550.31875 | O35: 5000 | P35: 488 | Q35: 325 | R35: 90 | S35: 122.5 | T35: 5 | U35: 6030.5 | V35: 0 | W35: 0
A36: 43405 | B36: 5000 | C36: 488 | D36: 75 | E36: 122.5 | F36: 685.5 | G36: 4314.5 | H36: 111.25 | I36: 4203.25 | J36: 388.305 | K36: 756.585 | L36: 710.25 | M36: 375.87625 | N36: 3550.31875 | O36: 5000 | P36: 488 | Q36: 325 | R36: 90 | S36: 122.5 | T36: 5 | U36: 6030.5 | V36: 0 | W36: 0
A37: 43435 | B37: 5000 | C37: 488 | D37: 75 | E37: 122.5 | F37: 685.5 | G37: 4314.5 | H37: 111.25 | I37: 4203.25 | J37: 388.305 | K37: 756.585 | L37: 710.25 | M37: 375.87625 | N37: 3550.31875 | O37: 5000 | P37: 488 | Q37: 325 | R37: 90 | S37: 122.5 | T37: 5 | U37: 6030.5 | V37: 0 | W37: 0

Sheet Arkusz3 (hidden)
A1: Pole obliczeniowe
A2: Kolejność rozwiązywania | B2: Pole | C2: Formuła
A3: 1 | B3: Składka Emerytalna | C3: ='Pracownik Emerytalna' +'Pracodawca Emerytalna'
A4: 2 | B4: Składka Rentowa | C4: ='Pracownik Rentowa' +' Pracodawca Rentowa'
A5: 3 | B5: Ile zabiera Państwo | C5: ='Pracodawca FP'+'Pracodawca FGŚP'+'Pracodawca Wypadkowa'+'Składka Emerytalna'+'Składka Rentowa '+'Pracownik podatek po odjęciu zdrowotnych'+'Pracownik Chorobowa'
A7: Element obliczeniowy
A8: Kolejność rozwiązywania | B8: Element | C8: Formuła
A11: Notatka: | B11: W sytuacji, gdy komórka jest aktualizowana przez więcej niż jedną formułę,
B12: wartość jest ustalona przez formułę, która jest ostatnia w kolejności rozwiązywania.
B14: Aby zmienić kolejność rozwiązywania formuł dla wielu elementów lub pól obliczeniowych,
B15: na karcie Opcje w grupie Obliczenia kliknij przycisk Pola, elementy i zestawy, a następnie kliknij polecenie Kolejność rozwiązywania.

Sheet Arkusz4 (hidden)
A1: Pole obliczeniowe
A2: Kolejność rozwiązywania | B2: Pole | C2: Formuła
A3: 1 | B3: Składka Emerytalna | C3: ='Pracownik Emerytalna' +'Pracodawca Emerytalna'
A4: 2 | B4: Składka Rentowa | C4: ='Pracownik Rentowa' +' Pracodawca Rentowa'
A5: 3
A7: Element obliczeniowy
A8: Kolejność rozwiązywania | B8: Element | C8: Formuła
A11: Notatka: | B11: W sytuacji, gdy komórka jest aktualizowana przez więcej niż jedną formułę,
B12: wartość jest ustalona przez formułę, która jest ostatnia w kolejności rozwiązywania.
B14: Aby zmienić kolejność rozwiązywania formuł dla wielu elementów lub pól obliczeniowych,
B15: na karcie Opcje w grupie Obliczenia kliknij przycisk Pola, elementy i zestawy, a następnie kliknij polecenie Kolejność rozwiązywania.

Sheet 1W (hidden)
B1: Etykiety kolumn
A2: Wartości | B2: 43101 | C2: 43132 | D2: 43160 | E2: 43191 | F2: 43221 | G2: 43252 | H2: 43282 | I2: 43313 | J2: 43344 | K2: 43374 | L2: 43405 | M2: 43435 | N2: Suma końcowa
A3: Emerytalna Pracownika | B3: 0.0976 | C3: 0.0976 | D3: 0.0976 | E3: 0.0976 | F3: 0.0976 | G3: 0.0976 | H3: 0.0976 | I3: 0.0976 | J3: 0.0976 | K3: 0.0976 | L3: 0.0976 | M3: 0.0976 | N3: 0.0976
A4: Rentowa Pracownik | B4: 0.015 | C4: 0.015 | D4: 0.015 | E4: 0.015 | F4: 0.015 | G4: 0.015 | H4: 0.015 | I4: 0.015 | J4: 0.015 | K4: 0.015 | L4: 0.015 | M4: 0.015 | N4: 0.015
A5: Chorobowa Pracownik | B5: 0.0245 | C5: 0.0245 | D5: 0.0245 | E5: 0.0245 | F5: 0.0245 | G5: 0.0245 | H5: 0.0245 | I5: 0.0245 | J5: 0.0245 | K5: 0.0245 | L5: 0.0245 | M5: 0.0245 | N5: 0.0245
A6: Zdrowotna Pracownik | B6: 0.077661 | C6: 0.077661 | D6: 0.077661 | E6: 0.077661 | F6: 0.077661 | G6: 0.077661 | H6: 0.077661 | I6: 0.077661 | J6: 0.077661 | K6: 0.077661 | L6: 0.077661 | M6: 0.077661 | N6: 0.077661
A7: Wynagrodzenie netto | B7: 0.71006375 | C7: 0.71006375 | D7: 0.71006375 | E7: 0.71006375 | F7: 0.71006375 | G7: 0.71006375 | H7: 0.71006375 | I7: 0.71006375 | J7: 0.71006375 | K7: 0.71006375 | L7: 0.71006375 | M7: 0.71006375 | N7: 0.71006375
A8: Zaliczka pracownik na PIT | B8: 0.07517525 | C8: 0.07517525 | D8: 0.07517525 | E8: 0.07517525 | F8: 0.07517525 | G8: 0.07517525 | H8: 0.07517525 | I8: 0.07517525 | J8: 0.07517525 | K8: 0.07517525 | L8: 0.07517525 | M8: 0.07517525 | N8: 0.07517525
A19: Etykiety wierszy | B19: Koszty wynagrodzenia pracodawcy | C19: Pracownik brutto (umowa o prace) | D19: Pracownik Netto (na ręke) | E19: Ile zabiera Państwo
A20: 2018 | B20: 72366 | C20: 60000 | D20: 42603.825 | E20: 29762.175
A21: Suma końcowa | B21: 72366 | C21: 60000 | D21: 42603.825 | E21: 29762.175
A22: Etykiety wierszy | B22: Pracodawca FP | C22: Zdrowotna | D22: Pracodawca FGŚP | E22: Pracodawca Wypadkowa | F22: Składka Emerytalna | G22: Składka Rentowa | H22: Pracownik podatek po odjęciu zdrowotnych | I22: Pracownik Chorobowa | J22: Ile pobiera Państwo
A23: 2018 | B23: 1470 | C23: 4659.66 | D23: 60 | E23: 1080 | F23: 11712 | G23: 4800 | H23: 4510.515 | I23: 1470 | J23: 29762.175
A24: Suma końcowa | B24: 1470 | C24: 4659.66 | D24: 60 | E24: 1080 | F24: 11712 | G24: 4800 | H24: 4510.515 | I24: 1470 | J24: 29762.175
K26: 0
K27: 0
A28: Etykiety wierszy | B28: Panśtwo % w całkowitym koszcie | C28: Pracownik netto % w całkowitym koszcie | K28: 0
A29: 2018 | B29: 0.4112729044 | C29: 0.5887270956 | K29: 0
A30: Suma końcowa | B30: 0.4112729044 | C30: 0.5887270956 | K30: 0
K31: 0
K32: 0
K33: 0
A34: Etykiety wierszy | B34: Pracodawca FP | C34: Pracodawca FGŚP | D34: Pracodawca Wypadkowa | E34: Skadka emerytalna | F34: Zdrowotna | G34: Pracownik podatek po odjęciu zdrowotnych | H34: Pracownik Chorobowa | I34: Składka rentowa | J34: Suma z Wszystkie składki
A35: 2018 | B35: 1470 | C35: 60 | D35: 1080 | E35: 11712 | F35: 4659.66 | G35: 4510.515 | H35: 1470 | I35: 4800 | J35: 29762.175
A36: Suma końcowa | B36: 1470 | C36: 60 | D36: 1080 | E36: 11712 | F36: 4659.66 | G36: 4510.515 | H36: 1470 | I36: 4800 | J36: 29762.175
